Cogmind - Beta 16.1 @@@ ROGUE MODE // 2026.02.17 @ 17:02:59 Player: ev3v Result: Destroyed by G-34 Mercenary with Small Laser Performance ------------- Evolutions (1) 500 Regions Visited (2) 400 Robots Destroyed (22) 110 Value Destroyed (522) 522 Prototype IDs (0) 0 Alien Tech Used (0) 0 Bonus (0) 0 TOTAL SCORE: 1532 Bonus ------- None Cogmind --------- Core Integrity 0/400 Matter 163/300 Energy 100/100 System Corruption 0% Temperature Cool (6) Movement Core (1350) Ox26 Location -9/Materials Parts ------- > --- POWER (2) -------- (None) > --- PROPULSION (2) --- (None) > --- UTILITY (3) ------ Huge Storage Unit Structural Scanner > --- WEAPON (2) ------- (None) > --- INVENTORY (25) --- Light Ion Engine Wheel Hover Unit Flight Unit Cooling System High-capacity Storage Unit High-capacity Storage Unit Small Matter Pod (11) Structural Scanner Terrain Scan Processor Peak State ------------ > --- POWER ------------ Nuclear Core Nuclear Core > --- PROPULSION ------- Titanium Leg Titanium Leg > --- UTILITY ---------- Huge Storage Unit Structural Scanner Core Shielding > --- WEAPON ----------- Beam Rifle Assault Rifle > --- INVENTORY -------- Light Ion Engine Wheel Hover Unit Flight Unit Cooling System High-capacity Storage Unit High-capacity Storage Unit Small Matter Pod Structural Scanner Terrain Scan Processor Light Assault Rifle Grenade Launcher Mining Laser Welding Torch [Rating: 19] Favorites ----------- Power Light Ion Engine Engine Light Ion Engine Power Core Nuclear Core Propulsion Wheel Leg Titanium Leg Wheel Wheel Hover Unit Hover Unit Flight Unit Flight Unit Utility Huge Storage Unit Device Structural Scanner Storage Huge Storage Unit Protection Core Shielding Weapon Grenade Launcher Energy Gun Small Laser Ballistic Gun Assault Rifle Launcher Grenade Launcher Special Weapon Mining Laser Build | -11 -10 -9 ------- Run | Yrd Mat Mat Slots Evolved 2 | . . 2 Power 1 | . . 1 Propulsion . | . . . Utility 1 | . . 1 Weapon . | . . . Parts Attached 31 | 10 14 7 Power 5 | 1 2 2 Engine 3 | 1 2 . Core 2 | . . 2 Reactor . | . . . Propulsion 9 | 4 3 2 Treads . | . . . Leg 4 | 2 . 2 Wheel 3 | 2 1 . Hover 1 | . 1 . Flight 1 | . 1 . Utility 9 | 1 7 1 Device 2 | 1 1 . Storage 6 | . 6 . Processor . | . . . Hackware . | . . . Protection 1 | . . 1 Artifact . | . . . Weapon 8 | 4 2 2 Energy Gun 2 | 1 . 1 Energy Cannon . | . . . Ballistic Gun 3 | 2 1 . Ballistic Cannon . | . . . Launcher 1 | . 1 . Special Weapon 2 | 1 . 1 Impact Weapon . | . . . Slashing Weapon . | . . . Piercing Weapon . | . . . Special Melee Weapon . | . . . Unidentified Prototypes . | . . . Parts Lost 13 | . 3 10 Power 3 | . 1 2 Propulsion 2 | . 1 1 Utility 2 | . 1 1 Weapon 6 | . . 6 Highest Loss Streak 10 | . 2 10 To Critical Strikes . | . . . Average Backups 8 | 2 8 12 Power . | . . . Propulsion 1 | 1 1 2 Utility 3 | . 3 5 Weapon 2 | 1 2 2 Tool/Special . | . . . Unused Backups 7 | 1 1 5 Power . | . . . Propulsion 1 | 1 . . Utility 6 | . 1 5 Weapon . | . . . Tool/Special . | . . . Average Slot Usage (%) 91 | . 95 80 Engine 10 | . 14 1 Core 4 | . . 16 Leg 8 | . 5 17 Wheel 12 | . 16 1 Flight 1 | . 1 . Device 13 | . 13 11 Storage 13 | . 13 11 Energy Gun 1 | . 1 1 Ballistic Gun 13 | . 14 10 Launcher 11 | . 12 6 Peak Build Rating 19 | 6 8 19 Average Rating 7 | 3 7 14 On Entrance 4 | . 6 7 Avg Prop Armor Cover (%) 5 | . 5 . Naked Turns . | . . . Heaviest Build 100 | 6 91 100 Greatest Support 34 | 20 26 34 Greatest Overweight (x) 29 | . 29 27 Average Overweight (x) 2 | . 3 3 Largest Inventory Capacity 25 | 5 25 25 Average Capacity 18 | 5 21 25 Most Carried 15 | 5 12 15 Average Carried 8 | 3 8 12 Final Capacity 25 | 5 25 25 Final Carried 10 | 5 10 10 Class Distribution -------------------- 100% | Mutant Dominant Class ---------------- Mutant | -10/Materials Mutant | -9/Materials Resources | -11 -10 -9 ----------- Run | Yrd Mat Mat Matter Collected 726 | 337 338 51 Remotely . | . . . Salvage Created 495 | 70 283 142 Parts 35 | 4 28 3 Haulers Intercepted . | . . . Recyclers Shooed 1 | . 1 . Parts Field Recycled . | . . . Retrieved Matter . | . . . Parts Self-Destructed . | . . . Prevented . | . . . Parts Restored . | . . . Kills | -11 -10 -9 ------- Run | Yrd Mat Mat Combat Hostiles Destroyed 17 | 1 11 5 Guns 3 | 1 1 1 AOE 14 | . 10 4 Classes Destroyed 7 | 2 4 1 Builder 1 | . 1 . Tunneler 2 | 2 . . Recycler 1 | . 1 . Watcher 1 | . 1 . Swarmer 6 | . 6 . Grunt 10 | 1 5 4 Sentry 1 | . . 1 Best Kill Streak 5 | 2 5 4 Combat Bots Only 5 | 1 5 4 Max Kills in Single Turn 4 | 1 4 2 Gunslinging . | . . . Exploded 3 | . 3 2 Melee . | . . . Uniques/NPCs Destroyed . | . . . Combat | -11 -10 -9 -------- Run | Yrd Mat Mat Hostile Shots Fired 126 | 12 20 94 Missed 30 | 2 9 19 Hits 96 | 10 11 75 Melee 24 | . . 24 Projectile 72 | 10 11 51 Critical Strikes 7 | . . 7 Actively Blocked 4 | . . 4 Damage Taken 1681 | 105 153 1423 Core 420 | . 16 404 Absorbed by Shields . | . . . Redirected to Shielding 55 | . . 55 Core Remaining (%) 96 | 100 93 . Volleys Fired 64 | 19 18 27 Largest 2 | 2 2 2 Hottest 120 | 120 50 120 Shots Fired 96 | 31 23 42 Gun 75 | 29 16 30 Cannon . | . . . Launcher 12 | . 7 5 Special 9 | 2 . 7 Kinetic 67 | 29 16 22 Thermal 17 | 2 . 15 Explosive 12 | . 7 5 Electromagnetic . | . . . Robot Hit Streak 12 | 9 8 12 Robot Miss Streak 3 | 3 2 1 Penetration Max . | . . . Secondary Targets 1 | 1 . . Max Gunslinging Chain 1 | 1 . . Shots Hit Robots 66 | 23 12 31 Core Hits 40 | 8 18 14 Critical Kills . | . . . Critical Parts Destroyed . | . . . Critical Strikes . | . . . Melee Attacks . | . . . Impact . | . . . Slashing . | . . . Piercing . | . . . Sneak Attacks . | . . . Combat Hostiles . | . . . Follow-up Attacks . | . . . Damage Inflicted 1633 | 224 649 760 Guns 574 | 176 74 324 Cannons . | . . . Explosions 1005 | . 575 430 Melee . | . . . Ramming . | . . . Kinetic 470 | 176 74 220 Thermal 158 | 48 . 110 Explosive 1005 | . 575 430 Electromagnetic . | . . . Impact . | . . . Slashing . | . . . Piercing . | . . . Highest Corruption 1 | . 1 . Average Corruption 1 | . 1 . Corruption Purged . | . . . Corruption Blocked . | . . . Effects 1 | . 1 . Data Loss (major) 1 | . 1 . Overload Shots . | . . . Overflow Damage 22 | . 10 12 Projectiles . | . . . Explosions 22 | . 10 12 Melee . | . . . Knockbacks . | . . . Impact . | . . . Kinetic . | . . . Secondary . | . . . Self-Inflicted Damage 94 | . 32 62 Shots 4 | . 1 3 Rammed . | . . . Targets Rammed . | . . . Kicked . | . . . Crushed . | . . . Highest Temperature 279 | 60 10 279 Average Temperature 94 | 19 7 119 Received Heat Transfer 420 | 60 54 306 Siege Activations . | . . . Martial Activations . | . . . Shielding Activations . | . . . Robots Disrupted . | . . . Combat Hostiles . | . . . Robots Corrupted . | . . . Combat Hostiles . | . . . Parts Fried . | . . . Impact Corruptions . | . . . Robots Melted . | . . . Combat Hostiles . | . . . Parts Melted . | . . . Heat Transferred 409 | 100 . 309 Parts Sabotaged . | . . . Parts Stolen . | . . . Parts Stripped . | . . . Power Chain Reactions . | . . . Alert | -11 -10 -9 ------- Run | Yrd Mat Mat Maximum Alert Level . | . . . Low Security (%) 100 | 100 100 100 Level 1 . | . . . Level 2 . | . . . Level 3 . | . . . Level 4 . | . . . Level 5 . | . . . High Security . | . . . Max Security . | . . . Peak Influence 164 | 20 164 113 Initial 5 | . . 5 Average 38 | 2 58 15 Influence Increases 540 | 30 352 158 Destroy 0b10 Robot/C 340 | 20 220 100 Destroy 0b10 Robot/NC 25 | 10 15 . Destroy Leader 82 | . 52 30 Successful Hack 13 | . 7 6 Disable Machine 15 | . 15 . Destroy Structure 65 | . 43 22 Influence Decreases 540 | 30 338 172 Entered New Map 9 | . . 9 Time Decay 408 | 30 308 70 Lost Part 123 | . 30 93 Squads Dispatched 3 | . 2 1 Investigation 2 | . 1 1 Extermination . | . . . Reinforcement 1 | . 1 . Assault . | . . . Garrison . | . . . Intercept . | . . . Searches Triggered . | . . . Construction Impeded . | . . . Haulers Reinforced . | . . . Active Scanning Responses . | . . . Cargo Convoy Interrupts . | . . . Stealth | -11 -10 -9 --------- Run | Yrd Mat Mat Distress Signals 2 | . . 2 Communications Jammed . | . . . Distress Signals . | . . . Times Spotted 26 | 1 17 8 Peak Tracking Total 7 | 1 5 7 Tactical Retreats . | . . . Traps | -11 -10 -9 ------- Run | Yrd Mat Mat Traps Triggered . | . . . Indirectly . | . . . Trap Hack Attempts . | . . . Triggered . | . . . Disarmed . | . . . Reprogrammed . | . . . Reused . | . . . Traps Extracted . | . . . Installed . | . . . Triggered . | . . . Machines | -11 -10 -9 ---------- Run | Yrd Mat Mat Machines Disabled 1 | . 1 . Max in Single Turn 1 | . 1 . Machines Repaired . | . . . Machines Dismantled . | . . . Machines Sabotaged . | . . . Overloaded Fab Kills . | . . . Hacking | -11 -10 -9 --------- Run | Yrd Mat Mat Machines Accessed 5 | . 4 1 Terminals 4 | . 3 1 Fabricators . | . . . Repair Stations . | . . . Recycling Units 1 | . 1 . Scanalyzers . | . . . Garrison Access . | . . . Total Hacks 24 | . 19 5 Successful 14 | . 10 4 Failed 10 | . 9 1 Catastrophic . | . . . Database Lockouts . | . . . Manual . | . . . Terminals 22 | . 17 5 Fabricators . | . . . Repair Stations . | . . . Recycling Units 2 | . 2 . Scanalyzers . | . . . Garrison Access . | . . . Terminal Hacks 14 | . 10 4 Record 9 | . 5 4 Robot Analysis 1 | . 1 . Alert Level 2 | . 2 . Maintenance Status 1 | . 1 . Transport Status 1 | . 1 . Fabricator Hacks . | . . . Repair Station Hacks . | . . . Recycling Unit Hacks . | . . . Scanalyzer . | . . . Garrison Access Hacks . | . . . Unauthorized Hacks . | . . . Terminals . | . . . Fabricators . | . . . Repair Stations . | . . . Recycling Units . | . . . Scanalyzers . | . . . Garrison Access . | . . . Data Cores Recovered . | . . . Used . | . . . Hacking Detections 5 | . 4 1 Full Trace Events 5 | . 4 1 Feedback Events 1 | . 1 . Corruption 1 | . 1 . Feedback Blocked . | . . . Robot Schematics Acquired . | . . . Robots Built . | . . . Authchips . | . . . Time . | . . . Total Robot Build Rating . | . . . Part Schematics Acquired . | . . . Parts Built . | . . . Authchips . | . . . Time . | . . . Total Part Build Rating . | . . . Part Studies Acquired . | . . . Parts Repaired . | . . . Time . | . . . Parts Recycled . | . . . Recycled Matter . | . . . Retrieved Matter . | . . . Retrieved Components . | . . . Parts Scanalyzed . | . . . Part Schematics Acquired . | . . . Parts Damaged . | . . . Bothacking | -11 -10 -9 ------------ Run | Yrd Mat Mat Used RIF Installer . | . . . Robots Hacked . | . . . Non-combat . | . . . Combat . | . . . Robot Hacks Applied . | . . . Relay Couplers Released . | . . . Fabnet Peak Effective % . | . . . Robots Rewired . | . . . Allies Hacked . | . . . Hacks Repelled . | . . . Allies | -11 -10 -9 -------- Run | Yrd Mat Mat Total Allies . | . . . Largest Group . | . . . Highest-Rated Group . | . . . Highest-Rated Ally . | . . . Total Orders . | . . . Ally Attacks . | . . . Total Damage . | . . . Kills . | . . . Allies Corrupted . | . . . Allies Melted . | . . . Intel | -11 -10 -9 ------- Run | Yrd Mat Mat Active Infowar (turns) 1344 | 109 919 316 Structural 786 | . 470 316 Seismic 558 | 109 449 . Robot Analysis Total 1 | . 1 . Derelict Logs Recovered . | . . . Drone Launches . | . . . Drone Recoveries . | . . . Exploration | -11 -10 -9 ------------- Run | Yrd Mat Mat Turns Passed 1565 | 322 927 316 Spaces Moved 826 | 349 402 75 Core 174 | 161 11 2 Treads . | . . . Legs 141 | 4 69 68 Wheels 506 | 184 317 5 Hover . | . . . Flight 5 | . 5 . Fastest Speed 50 | 50 80 200 Average Speed 154 | 66 204 298 Slowest Speed 1805 | 120 1805 1400 Overloaded Moves . | . . . Propulsion Burnouts . | . . . Robots Hopped . | . . . Potential Cave-ins . | . . . Cave-ins Triggered . | . . . Exploration Rate (%) 26 | 6 63 9 Regions Visited 2 Branch Regions . Pre-discovered Areas . | . . . Known Exits Taken . | . . . Unknown Exits Taken 2 | 1 1 . Scrap Searched . | . . . Spaces Dug . | . . . Terrain Destroyed 60 | . 38 22 Melee . | . . . Projectile . | . . . AOE 60 | . 38 22 Terrain Rammed . | . . . Walls Destroyed . | . . . Machines Disabled . | . . . Actions | -11 -10 -9 --------- Run | Yrd Mat Mat Total 1011 | 409 482 120 Wait 16 | 11 5 . Move 824 | 348 401 75 Hop . | . . . Pick Up 39 | 14 18 7 Fast Attach 2 | 1 1 . Attach 20 | 8 5 7 Detach 4 | 1 3 . Swap 27 | 3 20 4 Drop 15 | 4 11 . Fire 64 | 19 18 27 Melee . | . . . Ram . | . . . Kick . | . . . Crush . | . . . Escape Stasis . | . . . Rewire . | . . . Trap . | . . . Miscellaneous . | . . . Route ------- -11/Scrapyard -10/Materials (discovered 2 exits: *Mat x2) -9/Materials History --------- Turn | Location | Event 2 | -11/Scrapyard | Met Revision 17 175 | -11/Scrapyard | Discovered new exit (range 8) 323 | -11/Scrapyard | Entered Materials 365 | -10/Materials | Build established: Mutant 600 | -10/Materials | Discovered new exit (range 7) 707 | -10/Materials | Discovered new exit (range 12) 1250 | -10/Materials | Entered another Materials area 1250 | -9/Materials | Evolved 2 slots: Power x1, Utility x1 1539 | -9/Materials | Core integrity fell below 50% 1562 | -9/Materials | Core integrity fell below 20% 1566 | -9/Materials | Destroyed by G-34 Mercenary with Small Laser Last Messages --------------- K-01 Serf collects debris. U-05 Engineer lays Concrete. Welding Torch destroyed. U-05 Engineer builds a Wall. U-05 Engineer lays Concrete. Titanium Leg destroyed. Destroyed Imp. Ion Engine. U-05 Engineer lays Concrete. The unstable cave ceiling collapses. U-05 Engineer lays Concrete. U-05 Engineer builds a Door. U-05 Engineer builds a Wall. U-05 Engineer lays Concrete. Lgt. Assault Rifle destroyed. U-05 Engineer lays Concrete. Core Shielding destroyed. U-05 Engineer lays Concrete. U-05 Engineer builds a Wall. U-05 Engineer lays Concrete. [Achievement: First Step to Greatness] Map ----- +----------------------------------------------------+ | ????????????????????????????? | | ????????????????????????????? | | ????????????????????????????? | | ????????????????????????????? | | ????????????????????????????? | | ????????????????????????????? | | ????????????????????????????? | | ????????????????????????????? | | ????????????????????????????? | | ????????????????????????????? | | ????????????????????????????? | | ????????????????????????????? | | ???????? ?????????????????? | | ???????? ????????????????? | | ???????? ????????????????? | | ?????? # ""???????????????? | | ????? # """???? # ???????? | | ?????### """???? # ???????? | | ?????## ?? # ???????? | | ?????## # ???????? | | ????### """ + ???????? | | ####### """ # ???????? | | ##### # """ ## ???????? | | ## ## ## ##????????? | | # u # ? ##????????? | | # T @ # * ###??????????????? | | # l%+ ####?????????????? | | # !=gu#%[ # #######????????? | | # !!! # #########????????? | | # !!! # # T ##????????? | | ######## # ##????????? | | ######## # """ ##????????? | | ?????### # """ ##????????? | | ?????## + """ ##????????? | | ??????## # ##????????? | | ??????## #########????????? | | ######## #########????????? | | ######## # ##????????? | | # # # ##????????? | | # # # """ ##????????? | | # """ + + """ ##????????? | | # """ # # """ ##????????? | | # """ # # ##????????? | | # # #########????????? | | ######## # ##????????? | | ######## # ##????????? | | ??????## # """ ##????????? | | ??????## + """ ##????????? | | ??????## # """ ##????????? | | ??????## # ##????????? | +----------------------------------------------------+ Best States ------------- Heat Dissipation 28 Energy Generation 23 Energy Capacity 380 Matter Stores 300 Matter Capacity 300 Sight Range 16 Terrain Scan Density 10 Core Shielding 20 Evasion (%) 50 Item Schematics ----------------- None Robot Schematics ------------------ None Fabricated ------------ Nothing Repaired ---------- Nothing Studied --------- None Alien Tech Used ----------------- None Achievements -------------- Crack Shot First Step to Greatness Hydra I Have A Map? One Hack Too Far Organ Harvest That Tickles There's More Where That Came From Uninvited Guest Challenges ------------ None Game ------ Seed GlidesysBottomlessAutocannon Manual? 0 Play Time 00:51:03 Cumulative 0.7 hours Start 2026.02.17 @ 16:06:01 End 2026.02.17 @ 17:02:59 Sessions 1 Manual Loads 0 Difficulty Rogue Special Mode None Game No. 1 Rogue 1 Adventurer 0 Explorer 0 Win Type - Total 0 Types 0/0/0/0/0/0/0/0/0/0 Lore% 0 Gallery% 1 Achievement% 1 Wizard Run 0 Options --------- Layout 1 ASCII 0 Keyboard 0 Movement Mouse Keybinds 0 Fullscreen 1 Font 24/Smallcaps Map View 50x35 Zoom Use 1% Tactical HUD 0 Map Filters NONE Filters NONE Steam 1 RUN: aee7e162-91e1-45f4-90a2-91a0507b5d2d